lending/lending_fUSD_20240507
["ID","MTS","AMOUNT","RATE_DAILY","PERIOD"]
[326550590,1715105553054,-983.79,0.00019452,2]
[326550591,1715105553089,-500.0,0.00019452,2]
[326550592,1715105553106,-880.18,0.00019452,2]
[326550593,1715105553120,-1117.76,0.00019452,2]
[326550594,1715105553131,-500.0,0.00019452,2]
[326550595,1715105553141,-617.76,0.00019452,2]
[326550596,1715105553152,-500.0,0.00019452,2]
[326550597,1715105553167,-1567.91,0.00019452,2]
[326550598,1715105553195,-666.96,0.00019452,2]
[326550599,1715105553206,-500.0,0.00019452,2]
[326550600,1715105553217,-500.0,0.00019452,2]
[326550601,1715105553228,-500.0,0.00019452,2]
[326550602,1715105553250,-2152.69,0.00019452,2]
[326550603,1715105553261,-500.0,0.00019452,2]
[326550604,1715105553271,-500.0,0.00019452,2]
[326550605,1715105553294,-604.85,0.00019452,2]
[326550606,1715105553306,-896.53,0.00019452,2]
[326550607,1715105553316,-500.0,0.00019452,2]
[326550608,1715105553333,-500.0,0.00019452,2]
[326550609,1715105553343,-1115.16,0.00019452,2]
[326550610,1715105553353,-500.0,0.00019452,2]
[326550611,1715105553363,-500.0,0.00019452,2]
[326550612,1715105553374,-500.0,0.00019452,2]
[326550613,1715105553409,-622.4,0.00019452,2]
[326550614,1715105553420,-500.0,0.00019452,2]
[326550615,1715105553433,-500.0,0.00019452,2]
[326550616,1715105553455,-1145.35,0.00019452,2]
[326550617,1715105553467,-2862.89,0.00019452,2]
[326550618,1715105553480,-938.24,0.00019452,2]
[326550619,1715105553507,-500.0,0.00019452,2]
[326550620,1715105553518,-500.0,0.00019452,2]
[326550621,1715105553533,-500.0,0.00019452,2]
[326550622,1715105553556,-500.0,0.00019452,2]
[326550623,1715105553576,-500.0,0.00019452,2]
[326550624,1715105553611,-917.06,0.00019452,2]
[326550625,1715105553622,-501.99,0.00019452,2]
[326550626,1715105553640,-500.0,0.00019452,2]
[326550627,1715105553652,-500.0,0.00019452,2]
[326550628,1715105553664,-599.9,0.00019452,2]
[326550629,1715105553675,-374.21797725,0.00019452,2]
[326550630,1715105553709,-500.0,0.00019452,2]
[326550631,1715105553724,-663.53,0.00019452,2]
[326550632,1715105553749,-783.84,0.00019452,2]
[326550633,1715105553760,-500.0,0.00019452,2]
[326550634,1715105553773,-500.0,0.00019452,2]
[326550635,1715105553783,-500.0,0.00019452,2]
[326550636,1715105553794,-500.0,0.00019452,2]
[326550637,1715105553806,-654.08,0.00019452,2]
[326550638,1715105553829,-633.11,0.00019452,2]
[326550639,1715105553840,-679.25,0.00019452,2]
[326550640,1715105553872,-500.0,0.00019452,2]
[326550641,1715105553887,-500.0,0.00019452,2]
[326550642,1715105553898,-720.33,0.00019452,2]
[326550643,1715105553910,-770.79,0.00019452,2]
[326550644,1715105553923,-603.50770148,0.00019452,2]
[326550645,1715105553934,-1458.07,0.00019452,2]
[326550646,1715105553978,-729.57,0.00019452,2]
[326550647,1715105553990,-1206.99,0.00019452,2]
[326550648,1715105554000,-500.0,0.00019452,2]
[326550649,1715105554011,-500.0,0.00019452,2]
[326550650,1715105554025,-508.46882321,0.00019452,2]
[326550651,1715105554035,-901.99,0.00019452,2]
[326550652,1715105554045,-2291.75,0.00019452,2]
[326550653,1715105554057,-500.0,0.00019452,2]
[326550654,1715105554069,-786.7,0.00019452,2]
[326550655,1715105554082,-874.1,0.00019452,2]
[326550656,1715105554092,-500.0,0.00019452,2]
[326550657,1715105554115,-1498.69,0.00019452,2]
[326550658,1715105554126,-1025.17,0.00019452,2]
[326550659,1715105554141,-500.0,0.00019452,2]
[326550660,1715105554154,-500.0,0.00019452,2]
[326550661,1715105554165,-500.0,0.00019452,2]
[326550662,1715105554175,-500.0,0.00019452,2]
[326550663,1715105554186,-500.0,0.00019452,2]
[326550664,1715105554197,-1119.86,0.00019452,2]
[326550665,1715105554207,-866.47,0.00019452,2]
[326550666,1715105554218,-500.0,0.00019452,2]
[326550667,1715105554229,-500.0,0.00019452,2]
[326550668,1715105554240,-500.0,0.00019452,2]
[326550669,1715105554273,-850.08,0.00019452,2]
[326550670,1715105554285,-789.26,0.00019452,2]
[326550671,1715105554325,-500.0,0.00019452,2]
[326550672,1715105554351,-506.98219503,0.00019452,2]
[326550673,1715105554375,-500.0,0.00019452,2]
[326550674,1715105554391,-500.0,0.00019452,2]
[326550675,1715105554402,-500.0,0.00019452,2]
[326550676,1715105554415,-500.0,0.00019452,2]
[326550677,1715105554425,-500.0,0.00019452,2]
[326550678,1715105554435,-500.0,0.00019452,2]
[326550679,1715105554474,-1246.83,0.00019452,2]
[326550680,1715105554484,-602.95,0.00019452,2]
[326550681,1715105554502,-578.54,0.00019452,2]
[326550682,1715105554530,-628.97,0.00019452,2]
[326550683,1715105554542,-500.0,0.00019452,2]
[326550684,1715105554555,-500.0,0.00019452,2]
[326550685,1715105554571,-500.0,0.00019452,2]
[326550686,1715105554594,-328.76744379,0.00019452,2]
[326550687,1715105554630,-500.0,0.00019452,2]
[326550688,1715105554641,-857.63,0.00019452,2]
[326550689,1715105554668,-500.0,0.00019452,2]
[326550690,1715105554720,-511.03052058,0.00019452,2]
[326550691,1715105554731,-1237.72,0.00019452,2]
[326550692,1715105554741,-1373.85,0.00019452,2]
[326550693,1715105554753,-1020.3,0.00019452,2]
[326550694,1715105554763,-500.0,0.00019452,2]
[326550695,1715105554775,-500.0,0.00019452,2]
[326550696,1715105554788,-500.0,0.00019452,2]
[326550697,1715105554802,-514.16,0.00019452,2]
[326550698,1715105554813,-1646.07,0.00019452,2]
[326550699,1715105554824,-2048.87,0.00019452,2]
[326550700,1715105554835,-6014.47,0.00019452,2]
[326550701,1715105554853,-500.0,0.00019452,2]
[326550702,1715105554867,-539.47,0.00019452,2]
[326550703,1715105554878,-1036.58,0.00019452,2]
[326550704,1715105554890,-1252.57,0.00019452,2]
[326550705,1715105554901,-500.0,0.00019452,2]
[326550706,1715105554918,-246.61308043,0.00019452,2]
[326550707,1715105554930,-150.0,0.00019452,2]
[326550708,1715105554941,-665.98,0.00019452,2]
[326550709,1715105554955,-500.0,0.00019452,2]
[326550710,1715105554965,-500.0,0.00019452,2]
[326550711,1715105555010,-500.0,0.00019452,2]
[326550712,1715105555021,-1013.84,0.00019452,2]
[326550713,1715105555036,-500.0,0.00019452,2]
[326550714,1715105555046,-531.24,0.00019452,2]
[326550715,1715105555058,-500.0,0.00019452,2]
[326550716,1715105555081,-1038.38,0.00019452,2]
[326550717,1715105555093,-11885.09,0.00019452,2]
[326550718,1715105555109,-500.0,0.00019452,2]
[326550719,1715105555120,-500.0,0.00019452,2]
[326550720,1715105555131,-500.0,0.00019452,2]
[326550721,1715105555144,-519.72,0.00019452,2]
[326550722,1715105555160,-500.0,0.00019452,2]
[326550723,1715105555171,-500.0,0.00019452,2]
[326550724,1715105555181,-500.0,0.00019452,2]
[326550725,1715105555215,-500.0,0.00019452,2]
[326550726,1715105555242,-7456.46,0.00019452,2]
[326550727,1715105555277,-500.0,0.00019452,2]
[326550728,1715105555287,-500.0,0.00019452,2]
[326550729,1715105555297,-8356.91,0.00019452,2]
[326550730,1715105555309,-500.0,0.00019452,2]
[326550731,1715105555322,-1305.53,0.00019452,2]
[326550732,1715105555344,-785.17,0.00019452,2]
[326550733,1715105555357,-500.0,0.00019452,2]
[326550734,1715105555369,-500.0,0.00019452,2]
[326550735,1715105555401,-958.49,0.00019452,2]
[326550736,1715105555411,-2589.73,0.00019452,2]
[326550737,1715105555432,-762.88,0.00019452,2]
[326550738,1715105555444,-2572.94,0.00019452,2]
[326550739,1715105555474,-500.0,0.00019452,2]
[326550740,1715105555486,-500.0,0.00019452,2]
[326550741,1715105555500,-500.0,0.00019452,2]
[326550742,1715105555513,-513.88,0.00019452,2]
[326550743,1715105555525,-790.81,0.00019452,2]
[326550744,1715105555537,-896.68,0.00019452,2]
[326550745,1715105555567,-544.84,0.00019452,2]
[326550746,1715105555592,-500.0,0.00019452,2]
[326550747,1715105555604,-500.0,0.00019452,2]
[326550748,1715105555621,-500.0,0.00019452,2]
[326550749,1715105555631,-500.0,0.00019452,2]
[326550750,1715105555642,-1985.12,0.00019452,2]
[326550751,1715105555663,-500.0,0.00019452,2]
[326550752,1715105555674,-500.0,0.00019452,2]
[326550753,1715105555685,-500.0,0.00019452,2]
[326550754,1715105555695,-1258.11,0.00019452,2]
[326550755,1715105555708,-1700.29,0.00019452,2]
[326550756,1715105555719,-151.0,0.00019452,2]
[326550757,1715105555729,-225.793991,0.00019452,2]
[326550758,1715105555744,-4651.14,0.00019452,2]
[326550759,1715105555754,-500.0,0.00019452,2]
[326550760,1715105555771,-500.0,0.00019452,2]
[326550761,1715105555793,-550.93,0.00019452,2]
[326550762,1715105555813,-500.0,0.00019452,2]
[326550763,1715105555840,-500.0,0.00019452,2]
[326550764,1715105555856,-676.07,0.00019452,2]
[326550765,1715105555873,-959.08,0.00019452,2]
[326550766,1715105555885,-734.9,0.00019452,2]
[326550767,1715105555936,-500.0,0.00019452,2]
[326550768,1715105555951,-500.0,0.00019452,2]
[326550769,1715105555965,-698.7,0.00019452,2]
[326550770,1715105555983,-660.1,0.00019452,2]
[326550771,1715105556019,-663.69,0.00019452,2]
[326550772,1715105556034,-735.96,0.00019452,2]
[326550773,1715105556062,-20091.28,0.00019452,2]
[326550774,1715105556080,-8060.34,0.00019452,2]
[326550775,1715105556096,-1109.96,0.00019452,2]
[326550776,1715105556109,-2834.12,0.00019452,2]
[326550777,1715105556124,-14442.67,0.00019452,2]
[326550778,1715105556146,-500.0,0.00019452,2]
[326550779,1715105556161,-1349.78,0.00019452,2]
[326550780,1715105556171,-1229.5,0.00019452,2]
[326550781,1715105556185,-500.0,0.00019452,2]
[326550782,1715105556199,-998.22,0.00019452,2]
[326550783,1715105556216,-500.0,0.00019452,2]
[326550784,1715105556235,-657.39,0.00019452,2]
[326550785,1715105556252,-500.0,0.00019452,2]
[326550786,1715105556273,-1555.88,0.00019452,2]
[326550787,1715105556287,-500.0,0.00019452,2]
[326550788,1715105556307,-500.0,0.00019452,2]
[326550789,1715105556319,-500.0,0.00019452,2]
[326550790,1715105556347,-2045.92,0.00019452,2]
[326550791,1715105556361,-733.48,0.00019452,2]
[326550792,1715105556388,-44695.36,0.00019452,2]
[326550793,1715105556403,-2381.36,0.00019452,2]
[326550794,1715105556422,-1025.11,0.00019452,2]
[326550795,1715105556448,-500.0,0.00019452,2]
[326550796,1715105556466,-500.0,0.00019452,2]
[326550797,1715105556496,-500.0,0.00019452,2]
[326550798,1715105556516,-1880.09,0.00019452,2]
[326550799,1715105556537,-500.0,0.00019452,2]
[326550800,1715105556552,-1066.97,0.00019452,2]
[326550801,1715105556572,-1387.28,0.00019452,2]
[326550802,1715105556606,-575.88,0.00019452,2]
[326550803,1715105556625,-500.0,0.00019452,2]
[326550804,1715105556647,-2096.8,0.00019452,2]
[326550805,1715105556662,-500.0,0.00019452,2]
[326550806,1715105556692,-500.0,0.00019452,2]
[326550807,1715105556707,-2732.08,0.00019452,2]
[326550808,1715105556726,-840.9,0.00019452,2]
[326550809,1715105556743,-1050.6,0.00019452,2]
[326550810,1715105556759,-369.84554306,0.00019452,2]
[326550811,1715105556774,-835.2,0.00019452,2]
[326550812,1715105556790,-500.0,0.00019452,2]
[326550813,1715105556812,-3507.75,0.00019452,2]
[326550814,1715105556827,-500.0,0.00019452,2]
[326550815,1715105556841,-2837.98,0.00019452,2]
[326550816,1715105556856,-500.0,0.00019452,2]
[326550817,1715105556871,-2913.55,0.00019452,2]
[326550818,1715105556886,-500.0,0.00019452,2]
[326550819,1715105556921,-825.96,0.00019452,2]
[326550820,1715105556949,-2404.42,0.00019452,2]
[326550821,1715105556976,-1125.59,0.00019452,2]
[326550822,1715105556991,-500.0,0.00019452,2]
[326550823,1715105557004,-500.0,0.00019452,2]
[326550824,1715105557017,-2326.09,0.00019452,2]
[326550825,1715105557043,-500.0,0.00019452,2]
[326550826,1715105557058,-678.75,0.00019452,2]
[326550827,1715105557091,-5312.39,0.00019452,2]
[326550828,1715105557109,-2929.62,0.00019452,2]
[326550829,1715105557124,-500.0,0.00019452,2]
[326550830,1715105557139,-2251.89,0.00019452,2]
[326550831,1715105557156,-500.0,0.00019452,2]
[326550832,1715105557176,-1192.04,0.00019452,2]
[326550833,1715105557191,-995.1,0.00019452,2]
[326550834,1715105557205,-1422.68,0.00019452,2]
[326550835,1715105557219,-7636.26,0.00019452,2]
[326550836,1715105557234,-500.0,0.00019452,2]
[326550837,1715105557288,-5007.09,0.00019452,2]
[326550838,1715105557304,-6856.81,0.00019452,2]
[326550839,1715105557325,-4930.24,0.00019452,2]
[326550840,1715105557340,-1988.76,0.00019452,2]
[326550841,1715105557358,-500.0,0.00019452,2]
[326550842,1715105557382,-500.0,0.00019452,2]
[326550843,1715105557417,-500.0,0.00019452,2]
[326550844,1715105557439,-2775.11,0.00019452,2]
[326550845,1715105557453,-500.0,0.00019452,2]
[326550846,1715105557478,-1155.41,0.00019452,2]
[326550847,1715105557498,-1157.16,0.00019452,2]
[326550848,1715105557521,-790.84,0.00019452,2]
[326550849,1715105557547,-500.0,0.00019452,2]
[326550850,1715105557562,-29416.15,0.00019452,2]
[326550851,1715105557584,-500.0,0.00019452,2]
[326550852,1715105557598,-1981.97,0.00019452,2]
[326550853,1715105557616,-500.0,0.00019452,2]
[326550854,1715105557638,-500.0,0.00019452,2]
[326550855,1715105557652,-500.0,0.00019452,2]
[326550856,1715105557666,-500.0,0.00019452,2]
[326550857,1715105557680,-794.77,0.00019452,2]
[326550858,1715105557695,-500.0,0.00019452,2]
[326550859,1715105557717,-6716.37,0.00019452,2]
[326550860,1715105557733,-500.0,0.00019452,2]
[326550861,1715105557746,-1179.96,0.00019452,2]
[326550862,1715105557760,-1794.84,0.00019452,2]
[326550863,1715105557782,-500.0,0.00019452,2]
[326550864,1715105557798,-1634.78,0.00019452,2]
[326550865,1715105557814,-1100.13,0.00019452,2]
[326550866,1715105557828,-500.0,0.00019452,2]
[326550867,1715105557847,-500.0,0.00019452,2]
[326550868,1715105557864,-715.85,0.00019452,2]
[326550869,1715105557878,-500.0,0.00019452,2]
[326550870,1715105557892,-5160.56,0.00019452,2]
[326550871,1715105557905,-1024.0,0.00019452,2]
[326550872,1715105557926,-562.05,0.00019452,2]
[326550873,1715105557939,-4446.43,0.00019452,2]
[326550874,1715105557956,-500.0,0.00019452,2]
[326550875,1715105557974,-500.0,0.00019452,2]
[326550876,1715105557999,-500.0,0.00019452,2]
[326550877,1715105558020,-500.0,0.00019452,2]
[326550878,1715105558038,-500.0,0.00019452,2]
[326550879,1715105558051,-500.0,0.00019452,2]
[326550880,1715105558066,-1668.41,0.00019452,2]
[326550881,1715105558079,-500.0,0.00019452,2]
[326550882,1715105558091,-500.0,0.00019452,2]
[326550883,1715105558132,-500.0,0.00019452,2]
[326550884,1715105558150,-2897.06,0.00019452,2]
[326550885,1715105558166,-2273.27,0.00019452,2]
[326550886,1715105558181,-2266.91,0.00019452,2]
[326550887,1715105558198,-591.11,0.00019452,2]
[326550888,1715105558210,-2711.45,0.00019452,2]
[326550889,1715105558222,-2878.06,0.00019452,2]
[326550890,1715105558235,-500.0,0.00019452,2]
[326550891,1715105558254,-2747.7,0.00019452,2]
[326550892,1715105558298,-2730.02,0.00019452,2]
[326550893,1715105558310,-500.0,0.00019452,2]
[326550894,1715105558330,-680.44,0.00019452,2]
[326550895,1715105558341,-500.0,0.00019452,2]
[326550896,1715105558359,-2436.75,0.00019452,2]
[326550897,1715105558395,-2730.02,0.00019452,2]
[326550898,1715105558441,-500.0,0.00019452,2]
[326550899,1715105558453,-895.93,0.00019452,2]
[326550900,1715105558463,-1652.52,0.00019452,2]
[326550901,1715105558475,-549.07,0.00019452,2]
[326550902,1715105558505,-519.73,0.00019452,2]
[326550903,1715105558536,-500.0,0.00019452,2]
[326550904,1715105558547,-1304.96,0.00019452,2]
[326550905,1715105558564,-1593.18,0.00019452,2]
[326550906,1715105558575,-1412.02,0.00019452,2]
[326550907,1715105558594,-762.1,0.00019452,2]
[326550908,1715105558613,-38643.67,0.00019452,2]
[326550909,1715105558626,-500.0,0.00019452,2]
[326550910,1715105558636,-3669.89,0.00019452,2]
[326550911,1715105558646,-151.0,0.00019452,2]
[326550912,1715105558657,-151.0,0.00019452,2]
[326550913,1715105558669,-9384.72,0.00019452,2]
[326550914,1715105558680,-500.0,0.00019452,2]
[326550915,1715105558694,-500.0,0.00019452,2]
[326550916,1715105558711,-727.14,0.00019452,2]
[326550917,1715105558736,-500.0,0.00019452,2]
[326550918,1715105558753,-1170.08,0.00019452,2]
[326550919,1715105558763,-239.455664,0.00019452,2]
[326550920,1715105558781,-1941.14,0.00019452,2]
[326550921,1715105558792,-541.81,0.00019452,2]
[326550922,1715105558818,-618.14,0.00019452,2]
[326550923,1715105558845,-505.06596597,0.00019452,2]
[326550924,1715105558859,-3197.79,0.00019452,2]
[326550925,1715105558871,-631.46,0.00019452,2]
[326550926,1715105558882,-1921.54,0.00019452,2]
[326550927,1715105558893,-3099.44,0.00019452,2]
[326550928,1715105558906,-913.619557,0.00019452,2]
[326550929,1715105558946,-508.39488379,0.00019452,2]
[326550930,1715105558959,-4560.48,0.00019452,2]
[326550931,1715105558970,-913.619557,0.00019452,2]
[326550932,1715105558981,-913.619557,0.00019452,2]
[326550933,1715105558995,-500.0,0.00019452,2]
[326550934,1715105559007,-594.96,0.00019452,2]
[326550935,1715105559024,-1682.37,0.00019452,2]
[326550936,1715105559035,-1063.33,0.00019452,2]
[326550937,1715105559046,-3698.43,0.00019452,2]
[326550938,1715105559068,-913.619557,0.00019452,2]
[326550939,1715105559082,-808.36,0.00019452,2]
[326550940,1715105559098,-913.619557,0.00019452,2]
[326550941,1715105559113,-913.619557,0.00019452,2]
[326550942,1715105559129,-500.0,0.00019452,2]
[326550943,1715105559142,-628.13906819,0.00019452,2]
[326550944,1715105559156,-500.0,0.00019452,2]
[326550945,1715105559167,-500.0,0.00019452,2]
[326550946,1715105559181,-2956.08,0.00019452,2]
[326550947,1715105559193,-528.47,0.00019452,2]
[326550948,1715105559207,-17712.58,0.00019452,2]
[326550949,1715105559218,-3212.42,0.00019452,2]
[326550950,1715105559241,-1075.62,0.00019452,2]
[326550951,1715105559253,-684.43,0.00019452,2]
[326550952,1715105559265,-2995.55,0.00019452,2]
[326550953,1715105559313,-502.62,0.00019452,2]
[326550954,1715105559324,-500.0,0.00019452,2]
[326550955,1715105559366,-4441.97,0.00019452,2]
[326550956,1715105559382,-1716.07,0.00019452,2]
[326550957,1715105559412,-8698.62,0.00019452,2]
[326550958,1715105559424,-517.61,0.00019452,2]
[326550959,1715105559443,-503.97593953,0.00019452,2]
[326550960,1715105559462,-7988.89,0.00019452,2]
[326550961,1715105559472,-500.0,0.00019452,2]
[326550962,1715105559483,-1169.68,0.00019452,2]
[326550963,1715105559504,-500.0,0.00019452,2]
[326550964,1715105559514,-2365.32,0.00019452,2]
[326550965,1715105559528,-1802.09,0.00019452,2]
[326550966,1715105559539,-2488.08,0.00019452,2]
[326550967,1715105559551,-2525.86,0.00019452,2]
[326550968,1715105559566,-747.34,0.00019452,2]
[326550969,1715105559582,-500.0,0.00019452,2]
[326550970,1715105559606,-672.01,0.00019452,2]
[326550971,1715105559631,-500.0,0.00019452,2]
[326550972,1715105559656,-500.0,0.00019452,2]
[326550973,1715105559667,-2196.88,0.00019452,2]
[326550974,1715105559680,-1274.76,0.00019452,2]
[326550975,1715105559707,-2680.71,0.00019452,2]
[326550976,1715105559719,-862.12,0.00019452,2]
[326550977,1715105559730,-1924.04,0.00019452,2]
[326550978,1715105559742,-3541.95,0.00019452,2]
[326550979,1715105559756,-2146.45,0.00019452,2]
[326550980,1715105559769,-1745.92,0.00019452,2]
[326550981,1715105559787,-3103.92,0.00019452,2]
[326550982,1715105559798,-500.0,0.00019452,2]
[326550983,1715105559826,-500.0,0.00019452,2]
[326550984,1715105559841,-1000.0,0.00019452,2]
[326550985,1715105559856,-500.0,0.00019452,2]
[326550986,1715105559867,-756.1,0.00019452,2]
[326550987,1715105559879,-1873.65,0.00019452,2]
[326550988,1715105559890,-2541.93,0.00019452,2]
[326550989,1715105559920,-1454.37,0.00019452,2]
[326550990,1715105559931,-507.12,0.00019452,2]
[326550991,1715105559942,-1355.89,0.00019452,2]
[326550992,1715105559953,-857.95,0.00019452,2]
[326550993,1715105559972,-3339.3,0.00019452,2]
[326550994,1715105559985,-5966.98,0.00019452,2]
[326550995,1715105559997,-500.0,0.00019452,2]
[326550996,1715105560018,-500.0,0.00019452,2]
[326550997,1715105560037,-1339.67,0.00019452,2]
[326550998,1715105560049,-635.24,0.00019452,2]
[326550999,1715105560063,-638.44,0.00019452,2]
[326551000,1715105560077,-2977.97,0.00019452,2]
[326551001,1715105560090,-2330.41,0.00019452,2]
[326551002,1715105560105,-602.67,0.00019452,2]
[326551003,1715105560127,-708.04,0.00019452,2]
[326551004,1715105560742,-3811.26,0.00019452,2]
[326551005,1715105560765,-500.0,0.00019452,2]
[326551006,1715105560790,-1042.73,0.00019452,2]
[326551007,1715105560816,-1963.7,0.00019452,2]
[326551008,1715105560860,-2861.46,0.00019452,2]
[326551009,1715105560878,-618.46,0.00019452,2]
[326551010,1715105560895,-500.0,0.00019452,2]
[326551011,1715105560907,-3883.38,0.00019452,2]
[326551012,1715105560950,-1352.62,0.00019452,2]
[326551013,1715105560960,-4263.48,0.00019452,2]
[326551014,1715105560971,-2547.66,0.00019452,2]
[326551015,1715105560982,-2140.87,0.00019452,2]
[326551016,1715105561001,-2198.63,0.00019452,2]
[326551017,1715105561038,-709.65,0.00019452,2]
[326551018,1715105561056,-500.0,0.00019452,2]
[326551019,1715105561066,-500.0,0.00019452,2]
[326551020,1715105561090,-500.0,0.00019452,2]
[326551021,1715105561102,-5121.23,0.00019452,2]
[326551022,1715105561117,-3075.75,0.00019452,2]
[326551023,1715105561157,-3237.33,0.00019452,2]
[326551024,1715105561170,-4095.92,0.00019452,2]
[326551025,1715105561204,-500.0,0.00019452,2]
[326551026,1715105561215,-1411.6,0.00019452,2]
[326551027,1715105561231,-500.0,0.00019452,2]
[326551028,1715105561242,-1080.84,0.00019452,2]
[326551029,1715105561252,-1064.68,0.00019452,2]
[326551030,1715105561263,-7176.66,0.00019452,2]
[326551031,1715105561281,-7598.04,0.00019452,2]
[326551032,1715105561306,-823.3,0.00019452,2]
[326551033,1715105561316,-1138.76,0.00019452,2]
[326551034,1715105561330,-1486.57,0.00019452,2]
[326551035,1715105561351,-2761.44,0.00019452,2]
[326551036,1715105561362,-2435.41,0.00019452,2]
[326551037,1715105561373,-2200.2,0.00019452,2]
[326551038,1715105561388,-152.12902793,0.00019615,2]
[326551039,1715105561409,-150.5,0.0001968,15]
[326551040,1715105561421,-212.0,0.0001968,15]
[326551041,1715105561453,-150.5,0.0001969,15]
[326551042,1715105561466,-212.0,0.0001969,15]
[326551043,1715105561491,-150.5,0.000197,15]
[326551044,1715105561511,-212.0,0.000197,15]
[326551045,1715105561526,-902.13,0.00019726,2]
[326551046,1715105561538,-500.0,0.00019726,2]
[326551047,1715105561558,-500.0,0.00019726,2]
[326551048,1715105561571,-507.55591468,0.00019726,2]
[326551049,1715105561594,-512.00519407,0.00019726,2]
[326551050,1715105561618,-500.0,0.00019726,2]
[326551051,1715105561636,-504.83326261,0.00019726,2]
[326551052,1715105561649,-964.26,0.00019726,2]
[326551053,1715105561660,-232.53144972,0.00019726,2]
[326551054,1715105561684,-500.0,0.00019726,2]
[326551055,1715105561696,-500.0,0.00019726,2]
[326551056,1715105561712,-712.97,0.00019726,2]
[326551057,1715105561724,-500.0,0.00019726,2]
[326551058,1715105561734,-500.0,0.00019726,2]
[326551059,1715105561785,-506.58485243,0.00019726,2]
[326551060,1715105561797,-515.03414678,0.00019726,2]
[326551061,1715105561809,-507.81387651,0.00019726,2]
[326551062,1715105561819,-509.4067487,0.00019726,2]
[326551063,1715105561831,-510.98351215,0.00019726,2]
[326551064,1715105561851,-500.0,0.00019726,2]
[326551065,1715105561861,-500.0,0.00019726,2]
[326551066,1715105561906,-500.0,0.00019726,2]
[326551067,1715105561918,-500.0,0.00019726,2]
[326551068,1715105561931,-509.04417736,0.00019726,2]
[326551069,1715105561945,-759.45,0.00019726,2]
[326551070,1715105561976,-500.0,0.00019726,2]
[326551071,1715105561988,-500.0,0.00019726,2]
[326551072,1715105561999,-696.64,0.00019726,2]
[326551073,1715105562015,-500.0,0.00019726,2]
[326551074,1715105562036,-500.0,0.00019726,2]
[326551075,1715105562049,-749.43,0.00019726,2]
[326551076,1715105562064,-506.49711501,0.00019726,2]
[326551077,1715105562082,-500.0,0.00019726,2]
[326551078,1715105562095,-992.5,0.00019726,2]
[326551079,1715105562136,-500.0,0.00019726,2]
[326551080,1715105562146,-500.0,0.00019726,2]
[326551081,1715105562168,-513.1,0.00019726,2]
[326551082,1715105562180,-500.0,0.00019726,2]
[326551083,1715105562193,-500.0,0.00019726,2]
[326551084,1715105562222,-500.0,0.00019726,2]
[326551085,1715105562238,-500.0,0.00019726,2]
[326551086,1715105562268,-500.0,0.00019726,2]
[326551087,1715105562278,-500.0,0.00019726,2]
[326551088,1715105562296,-1147.18,0.00019726,2]
[326551089,1715105562318,-891.13,0.00019726,2]